bitfinex/quotes_BTCUSD_20250224
["timestamp","ask_amount","ask_price","bid_price","bid_amount"]
[1740401125558,0.003,96068.0,96060.0,0.10410294]
[1740401125762,0.006,96068.0,96060.0,0.10410294]
[1740401125924,0.02207698,96070.0,96060.0,0.10410294]
[1740401126103,0.156141,96067.0,96060.0,0.10410294]
[1740401126305,0.001,96065.0,96060.0,0.10410294]
[1740401127503,0.002,96068.0,96060.0,0.10410294]
[1740401128313,0.02207698,96070.0,96060.0,0.10410294]
[1740401128578,0.02207698,96070.0,96060.0,0.26025394]
[1740401128824,0.002,96067.0,96060.0,0.26025394]
[1740401129019,0.02207698,96070.0,96060.0,0.26025394]
[1740401129230,0.004,96068.0,96061.0,0.0798]
[1740401129427,0.004,96068.0,96062.0,0.10410286]
[1740401129690,0.002,96068.0,96062.0,0.10410286]
[1740401129882,0.002,96067.0,96062.0,0.10410286]
[1740401130659,0.00212902,96067.0,96062.0,0.10410286]
[1740401131487,0.00412902,96067.0,96062.0,0.10410286]
[1740401132002,0.00212902,96067.0,96062.0,0.10410286]
[1740401132203,0.00612902,96067.0,96062.0,0.10410286]
[1740401138187,0.156144,96065.0,96062.0,0.10410286]
[1740401138384,0.156146,96064.0,96062.0,0.10264569]
[1740401139258,0.156147,96063.0,96062.0,0.10264569]
[1740401139960,0.002,96064.0,96062.0,0.10264569]
[1740401140339,0.00012902,96067.0,96062.0,0.10264569]
[1740401140715,0.208191,96066.0,96062.0,0.10264569]
[1740401140918,0.156143,96066.0,96062.0,0.10264569]
[1740401141142,0.156142,96066.0,96062.0,0.10264569]
[1740401141343,0.00012902,96067.0,96062.0,0.10264569]
[1740401141540,0.001,96063.0,96062.0,0.10264569]
[1740401141835,0.00012902,96067.0,96062.0,0.10264569]
[1740401142068,0.002,96066.0,96063.0,0.00145718]
[1740401142259,0.004,96066.0,96064.0,0.25878969]
[1740401142437,0.002,96066.0,96064.0,0.10264569]
[1740401142639,0.00012902,96067.0,96064.0,0.10164569]
[1740401143112,0.00112902,96067.0,96064.0,0.10164569]
[1740401144060,0.00112902,96067.0,96064.0,0.25779069]
[1740401144267,0.00012902,96067.0,96064.0,0.10164569]
[1740401144466,0.00112902,96067.0,96064.0,0.10164569]
[1740401144670,0.15727102,96067.0,96064.0,0.10164569]
[1740401144873,0.00112902,96067.0,96064.0,0.10164569]
[1740401145925,0.00212902,96067.0,96064.0,0.10164569]
[1740401146363,0.15827002,96067.0,96064.0,0.10164569]
[1740401146555,0.00212902,96067.0,96064.0,0.10164569]
[1740401146791,0.15827002,96067.0,96064.0,0.10164569]
[1740401147250,0.156147,96063.0,96062.0,0.001699]
[1740401148278,0.156147,96063.0,96062.0,0.002699]
[1740401148478,0.156147,96063.0,96062.0,0.003699]
[1740401149390,0.306147,96063.0,96062.0,0.003699]
[1740401165541,0.306147,96063.0,96062.0,0.002699]
[1740401165941,0.307147,96063.0,96062.0,0.001699]
[1740401166254,0.308147,96063.0,96062.0,0.001699]
[1740401204817,0.308147,96063.0,96012.0,0.15]
[1740401204818,0.156188,96038.0,96037.0,0.0827]
[1740401206043,0.156188,96038.0,96037.0,0.0867]
[1740401206258,0.156188,96038.0,96037.0,0.08713108]
[1740401206463,0.156188,96038.0,96037.0,0.00443108]
[1740401206883,0.156188,96038.0,96037.0,0.00843108]
[1740401210596,0.156188,96038.0,96037.0,0.00443108]
[1740401210824,0.156188,96038.0,96037.0,0.00243108]
[1740401211184,0.156188,96038.0,96037.0,0.00443108]
[1740401211393,0.156188,96038.0,96037.0,0.00043108]
[1740401211793,0.156188,96038.0,96037.0,0.00143108]
[1740401212742,0.17956987,96040.0,96037.0,0.00243108]
[1740401212926,0.156188,96038.0,96037.0,0.00243108]
[1740401213469,0.156188,96038.0,96037.0,0.00143108]
[1740401213786,0.156188,96038.0,96037.0,0.00243108]
[1740401214479,0.156188,96038.0,96037.0,0.00143108]
[1740401214768,0.156188,96038.0,96037.0,0.00243108]
[1740401216975,0.156188,96038.0,96037.0,0.00413008]
[1740401232696,0.306188,96038.0,96037.0,0.00413008]
[1740401234265,0.32072885,96038.0,96037.0,0.00413008]
[1740401234462,0.50642885,96038.0,96037.0,0.00413008]
[1740401235845,0.50642885,96038.0,96037.0,0.00313008]
[1740401236046,0.50642885,96038.0,96037.0,0.00213008]
[1740401236250,0.51042885,96038.0,96037.0,0.00213008]
[1740401236453,0.51342885,96038.0,96037.0,0.00213008]
[1740401237187,0.51668905,96038.0,96037.0,0.00213008]
[1740401241076,0.52834163,96038.0,96037.0,0.00213008]
[1740401241692,0.15621,96024.0,96023.0,0.0480986]
[1740401241902,0.15621,96024.0,96023.0,0.04814168]
[1740401242746,0.1594702,96024.0,96023.0,0.04814168]
[1740401242878,0.1594702,96024.0,96023.0,0.04914168]
[1740401243668,0.1594702,96024.0,96023.0,0.05014168]
[1740401244068,0.17659607,96024.0,96023.0,0.05014168]
[1740401244227,0.17659607,96024.0,96023.0,0.00374168]
[1740401244828,0.17659607,96024.0,96023.0,0.00274168]
[1740401245233,0.17659607,96024.0,96023.0,0.00174168]
[1740401245431,0.17659607,96024.0,96023.0,0.00274168]
[1740401246372,0.17659607,96024.0,96023.0,0.00374168]
[1740401259188,0.16929607,96024.0,96023.0,0.00374168]
[1740401260920,0.16603587,96024.0,96023.0,0.00374168]
[1740401261122,0.31603587,96024.0,96023.0,0.00374168]
[1740401262873,0.42555451,96024.0,96023.0,0.00374168]
[1740401263083,0.30623,96012.0,96009.0,0.0016998]
[1740401265109,0.30623,96012.0,96011.0,0.0812994]
[1740401266313,0.30623,96012.0,96011.0,0.0016994]
[1740401268955,0.32201515,96012.0,96011.0,0.0016994]
[1740401269817,0.32301515,96012.0,96011.0,0.0016994]
[1740401270018,0.337556,96012.0,96011.0,0.0016994]
[1740401270993,0.38288771,96012.0,96011.0,0.0016994]
[1740401272484,0.38188771,96012.0,96011.0,0.0016994]
[1740401272688,0.38388771,96012.0,96011.0,0.0016994]
[1740401274917,0.16454085,96011.0,96009.0,6e-07]
[1740401275114,3.40711754,96010.0,96009.0,6e-07]
[1740401275318,0.52606523,96010.0,96009.0,6e-07]
[1740401275897,3.60447585,96009.0,96005.0,0.0016592]
[1740401276078,0.32078085,96006.0,96005.0,0.0016592]
[1740401276280,3.66295954,96006.0,96005.0,0.0016592]
[1740401276484,3.70298603,96006.0,96005.0,0.0016592]
[1740401276681,3.32908103,96006.0,96005.0,0.0016592]
[1740401277135,2.75494703,96006.0,96005.0,0.0016592]
[1740401278429,2.75694703,96006.0,96005.0,0.0016592]
[1740401278654,2.76475751,96006.0,96005.0,0.0016592]
[1740401280759,2.76675751,96006.0,96005.0,0.0016592]
[1740401280905,0.43523702,96006.0,96005.0,0.0016592]
[1740401281517,0.33259133,96006.0,96005.0,0.0016592]
[1740401281700,0.34151133,96006.0,96005.0,0.0016592]
[1740401281906,0.31805048,96006.0,96005.0,0.0016592]
[1740401282336,0.16805048,96006.0,96005.0,0.0016592]
[1740401284248,0.17131148,96006.0,96005.0,0.0016592]
[1740401286702,0.32131148,96006.0,96005.0,0.0016592]
[1740401297986,0.33585233,96006.0,96005.0,0.0016592]
[1740401298190,2.37847363,96006.0,96005.0,2e-07]
[1740401298395,2.37847363,96006.0,95991.0,0.0004]
[1740401298396,0.156263,95992.0,95991.0,0.0004]
[1740401298653,0.156263,95992.0,95991.0,0.00044305]
[1740401298862,0.17080385,95992.0,95991.0,0.00044305]
[1740401299336,0.32080385,95992.0,95991.0,0.00044305]
[1740401299613,0.32080385,95992.0,95991.0,0.00344305]
[1740401300115,0.32861433,95992.0,95991.0,0.00044305]
[1740401300339,0.33187533,95992.0,95991.0,0.00044305]
[1740401301224,0.306274,95985.0,95984.0,0.00238275]
[1740401301660,0.306274,95985.0,95984.0,0.08258275]
[1740401301661,0.315194,95985.0,95984.0,0.08258275]
[1740401301869,0.31408448,95985.0,95984.0,0.12958017]
[1740401303047,0.31834548,95985.0,95984.0,0.12958017]
[1740401304913,0.156293,95973.0,95972.0,0.0827]
[1740401305276,0.156293,95973.0,95972.0,0.1298]
[1740401306103,0.16410348,95973.0,95972.0,0.1338]
[1740401306321,0.16736448,95973.0,95972.0,0.1338]
[1740401306524,0.16736448,95973.0,95972.0,0.1368]
[1740401311342,0.18291007,95973.0,95972.0,0.1368]
[1740401313330,0.02661707,95973.0,95972.0,0.1368]
[1740401313531,0.18291007,95973.0,95972.0,0.1368]
[1740401313998,0.02661707,95973.0,95972.0,0.1368]
[1740401315061,0.01107148,95973.0,95972.0,0.23944569]
[1740401317009,0.01107148,95973.0,95972.0,0.39574069]
[1740401317217,0.01107148,95973.0,95972.0,0.23944569]
[1740401317402,0.01628798,95979.0,95973.0,0.0763]
[1740401317655,0.156282,95981.0,95975.0,0.0763]
[1740401317863,0.156279,95982.0,95976.0,0.10264569]
[1740401318039,0.156281,95981.0,95977.0,0.0763]
[1740401318279,0.156282,95981.0,95978.0,0.10264569]
[1740401318489,0.01611587,95982.0,95978.0,0.10264569]
[1740401318682,0.17239587,95982.0,95978.0,0.10264569]
[1740401318901,0.15628,95982.0,95978.0,0.10264569]
[1740401319520,0.10962848,95990.0,95978.0,0.10264569]
[1740401319930,0.15628,95982.0,95978.0,0.10264569]
[1740401320141,0.208357,95989.0,95978.0,0.10364569]
[1740401320352,0.208376,95981.0,95978.0,0.10364569]
[1740401320579,0.156283,95980.0,95978.0,0.10464569]
[1740401320782,0.156282,95981.0,95978.0,0.10464569]
[1740401321734,0.156282,95981.0,95978.0,0.10364569]
[1740401322112,0.156282,95981.0,95978.0,0.10264569]
[1740401322314,0.156282,95981.0,95978.0,0.10364569]
[1740401323101,0.156282,95981.0,95978.0,0.10464569]
[1740401323302,0.156281,95981.0,95978.0,0.10464569]
[1740401323704,0.0008502,95984.0,95978.0,0.10464569]
[1740401323929,0.156284,95979.0,95978.0,0.10464569]
[1740401325050,0.156284,95979.0,95978.0,0.10364569]
[1740401325262,0.156284,95979.0,95978.0,0.10264569]
[1740401325468,0.156285,95978.0,95977.0,0.0763]
[1740401326300,0.20837,95983.0,95972.0,0.1287]
[1740401326447,0.156293,95973.0,95972.0,0.0488]
[1740401328486,0.156293,95973.0,95972.0,0.0518]
[1740401328691,0.156293,95973.0,95972.0,0.0558]
[1740401330645,0.16411089,95973.0,95972.0,0.0558]
[1740401333861,0.00781789,95973.0,95972.0,0.1345]
[1740401334096,0.00781789,95973.0,95972.0,0.23714569]
[1740401340445,0.16411089,95973.0,95972.0,0.23714569]
[1740401340675,0.16411089,95973.0,95972.0,0.1345]
[1740401341276,0.16411089,95973.0,95972.0,0.0558]
[1740401341758,0.16411089,95973.0,95972.0,0.0087]
[1740401344342,0.31411089,95973.0,95972.0,0.0087]
[1740401350461,0.31411089,95973.0,95972.0,0.0047]
[1740401350902,0.31411089,95973.0,95972.0,0.0027]
[1740401351104,0.32965174,95973.0,95972.0,0.0027]
[1740401351311,0.32965174,95973.0,95972.0,0.0017]
[1740401351750,0.33065174,95973.0,95972.0,0.0017]
[1740401351931,0.32965174,95973.0,95972.0,0.0017]
[1740401352082,0.32865174,95973.0,95972.0,0.0017]
[1740401352285,0.33165174,95973.0,95972.0,0.0017]
[1740401352914,0.33491403,95973.0,95972.0,0.0017]
[1740401353394,0.33791403,95973.0,95972.0,0.0017]
[1740401354727,0.44055972,95973.0,95972.0,0.0017]
[1740401357307,1.15011672,95973.0,95972.0,0.0017]
[1740401358112,0.15,95972.0,95951.0,0.0004]
[1740401358322,0.306328,95952.0,95951.0,0.00051678]
[1740401359518,0.31740818,95952.0,95951.0,0.00051678]
[1740401360906,0.31740818,95952.0,95951.0,0.00451678]
[1740401361101,0.31740818,95952.0,95951.0,0.00951678]
[1740401363999,0.31740818,95952.0,95951.0,0.00651678]
[1740401367818,0.31740818,95952.0,95951.0,0.08621678]
[1740401368462,0.31740818,95952.0,95951.0,0.13451678]
[1740401369375,0.31740818,95952.0,95951.0,0.13621698]
[1740401369741,0.31414589,95952.0,95951.0,0.13621698]
[1740401374079,0.31740853,95952.0,95951.0,0.13621698]
[1740401382574,0.16108053,95952.0,95951.0,0.13621698]
[1740401382747,0.01108053,95952.0,95951.0,0.13621698]
[1740401383112,0.01108053,95952.0,95951.0,0.29254598]
[1740401383374,0.01108053,95952.0,95951.0,0.23886267]
[1740401386209,0.01108053,95952.0,95951.0,0.39519167]
[1740401388365,0.01108053,95952.0,95951.0,0.38919167]
[1740401388557,0.01108053,95952.0,95951.0,0.39219167]
[1740401388736,0.01108053,95952.0,95951.0,0.39519167]
[1740401389092,0.01108053,95952.0,95951.0,0.39219167]
[1740401389293,0.01208053,95952.0,95951.0,0.39719167]
[1740401390082,0.01208053,95952.0,95951.0,0.39419167]
[1740401390502,0.01308053,95952.0,95951.0,0.40119167]
[1740401390885,0.00526264,95952.0,95951.0,0.40119167]
[1740401391309,0.00526264,95952.0,95951.0,0.24486267]
[1740401391513,0.00526264,95952.0,95951.0,0.40119167]
[1740401393675,0.00526264,95952.0,95951.0,0.74259167]
[1740401393879,0.002,95952.0,95951.0,0.74259167]
[1740401394470,0.002,95952.0,95951.0,0.76259167]
[1740401394677,0.0008504,95972.0,95971.0,0.1237]
[1740401394885,0.0008504,95972.0,95971.0,0.38264269]
[1740401395384,0.00865393,95972.0,95971.0,0.38264269]
[1740401396204,0.00965393,95972.0,95971.0,0.38864269]
[1740401396392,0.00965393,95972.0,95971.0,0.23234569]
[1740401397146,0.00965393,95972.0,95971.0,0.23834569]
[1740401397870,0.01291535,95972.0,95971.0,0.23834569]
[1740401398591,0.01291535,95972.0,95971.0,0.39464269]
[1740401399371,0.01291535,95972.0,95971.0,0.23834569]
[1740401400106,0.01291535,95972.0,95971.0,0.39464269]
[1740401400313,0.01291535,95972.0,95971.0,0.23834569]
[1740401400611,0.00511182,95972.0,95971.0,0.23834569]
[1740401401832,0.00511182,95972.0,95971.0,0.39464269]
[1740401402240,0.00511182,95972.0,95971.0,0.23834569]
[1740401404791,0.16140682,95972.0,95971.0,0.23834569]
[1740401405093,0.00511182,95972.0,95971.0,0.23834569]
[1740401405294,0.16140682,95972.0,95971.0,0.23834569]
[1740401405547,0.16140682,95972.0,95971.0,0.16194569]
[1740401406173,0.00511182,95972.0,95971.0,0.16194569]
[1740401406504,0.16920118,95972.0,95971.0,0.16194569]
[1740401406732,0.01290618,95972.0,95971.0,0.16194569]
[1740401412728,0.01290618,95972.0,95971.0,0.31824269]
[1740401413336,0.01290618,95972.0,95971.0,0.40024269]
[1740401413858,0.01290618,95972.0,95971.0,0.72164269]
[1740401415213,0.00511182,95972.0,95971.0,0.72164269]
[1740401416171,0.00511182,95972.0,95971.0,0.72334189]
[1740401417657,0.0018504,95972.0,95971.0,0.72334189]
[1740401430665,0.12589698,96002.0,95972.0,0.0817]
[1740401430866,0.156262,95993.0,95979.0,0.156283]
[1740401431087,0.156262,95993.0,95981.0,0.0458]
[1740401431294,0.156262,95993.0,95982.0,0.10264569]
[1740401431505,0.208345,95995.0,95982.0,0.10264569]
[1740401431705,0.156261,95993.0,95982.0,0.10264569]
[1740401432325,0.208345,95995.0,95982.0,0.10264569]
[1740401432542,0.15626,95994.0,95983.0,0.00145844]
[1740401432745,0.01419043,96002.0,95984.0,0.10264569]
[1740401432981,0.15626,95994.0,95984.0,0.10264569]
[1740401433219,0.00326098,95993.0,95984.0,0.10264569]
[1740401433429,0.15952298,95993.0,95984.0,0.10264569]
[1740401434347,0.156263,95992.0,95984.0,0.10264569]
[1740401435201,0.00326098,95991.0,95984.0,0.10264569]
[1740401435641,0.208355,95990.0,95984.0,0.10264569]
[1740401435881,0.15627,95988.0,95984.0,0.10264569]
[1740401436326,0.156267,95990.0,95984.0,0.10264569]
[1740401436519,0.156268,95989.0,95984.0,0.10264569]
[1740401436903,0.00326098,95987.0,95984.0,0.10264569]
[1740401437623,0.00326098,95987.0,95984.0,0.10364569]
[1740401438166,0.00326098,95987.0,95984.0,0.10264569]
[1740401439108,0.00326098,95986.0,95984.0,0.10264569]
[1740401439426,0.00326098,95986.0,95984.0,0.10364569]
[1740401439632,0.00326098,95986.0,95984.0,0.10464569]
[1740401439833,0.00326098,95986.0,95984.0,0.10364569]
[1740401440036,0.00326098,95986.0,95984.0,0.10264569]
[1740401440236,0.00326098,95986.0,95984.0,0.10364569]
[1740401440938,0.00326098,95985.0,95984.0,0.10464569]
[1740401441936,0.00326098,95985.0,95984.0,0.10364569]
[1740401442403,0.00326098,95985.0,95984.0,0.10264569]
[1740401442630,0.00326098,95985.0,95984.0,0.10564569]
[1740401452933,0.00326098,95985.0,95984.0,0.26192169]
[1740401453154,0.00326098,95985.0,95984.0,0.10734429]
[1740401454304,0.00326098,95985.0,95984.0,0.26362029]
[1740401454482,0.00326098,95985.0,95984.0,0.10734429]
[1740401455364,0.00326098,95985.0,95984.0,0.26362029]
[1740401457314,0.00326098,95985.0,95984.0,0.10734429]
[1740401460451,0.00326098,95985.0,95984.0,0.26362029]
[1740401461450,0.00326098,95985.0,95984.0,0.10734429]
[1740401461661,0.00326098,95985.0,95984.0,0.10880268]
[1740401461851,0.00326098,95985.0,95984.0,0.26507868]
[1740401462018,0.00326098,95985.0,95984.0,0.26362029]
[1740401463923,0.00326098,95985.0,95984.0,0.34392029]
[1740401464949,0.00326098,95985.0,95984.0,0.39052029]
[1740401465626,0.00326098,95985.0,95984.0,0.38752029]
[1740401465826,0.00326098,95985.0,95984.0,0.38952029]
[1740401466236,0.00326098,95985.0,95984.0,0.38752029]
[1740401466436,0.00326098,95985.0,95984.0,0.39252029]
[1740401466639,0.0008493,96002.0,95984.0,0.10934429]
[1740401466844,0.0008493,96002.0,96001.0,0.282848]
[1740401467052,0.0008493,96002.0,96001.0,0.38549369]
[1740401468585,0.0041095,96002.0,96001.0,0.39049369]
[1740401468753,0.0041095,96002.0,96001.0,0.39449369]
[1740401469162,0.0041095,96002.0,96001.0,0.71589369]
[1740401470196,0.0041095,96002.0,96001.0,0.71189369]
[1740401470372,0.0008493,96002.0,96001.0,0.71789369]
[1740401470566,0.0008493,96002.0,96001.0,0.71289369]
[1740401470786,0.0008493,96002.0,96001.0,0.71789369]
[1740401471214,0.0008493,96002.0,96001.0,0.71289369]
[1740401471538,0.0008493,96002.0,96001.0,0.71989369]
[1740401472321,0.0008493,96002.0,96001.0,0.71389369]
[1740401472733,0.0008493,96002.0,96001.0,1.27989369]
[1740401473005,0.0008493,96002.0,96001.0,1.28689369]
[1740401473377,0.0008493,96002.0,96001.0,1.45689369]
[1740401473572,0.0008493,96002.0,96001.0,1.44289369]
[1740401473931,0.0008493,96002.0,96001.0,1.45689369]
[1740401474156,0.0008493,96002.0,96001.0,1.44989369]
[1740401474784,0.0008493,96002.0,96001.0,1.45689369]
[1740401475207,0.0008493,96002.0,96001.0,1.44989369]
[1740401475609,0.0008493,96002.0,96001.0,1.45689369]
[1740401475812,0.0008493,96002.0,96001.0,1.44989369]
[1740401476727,0.0008493,96002.0,96001.0,1.45689369]
[1740401483017,0.01454085,96069.0,96016.0,0.208298]
[1740401483221,0.156186,96039.0,96029.0,0.156202]
[1740401483429,0.156186,96039.0,96030.0,0.10264569]
[1740401483603,0.17343993,96039.0,96030.0,0.10264569]
[1740401484326,0.01725393,96039.0,96030.0,0.10264569]
[1740401484535,0.01725393,96039.0,96031.0,0.00145768]
[1740401484733,0.00097875,96040.0,96032.0,0.10264569]
[1740401485172,0.15716475,96040.0,96032.0,0.10264569]
[1740401485408,0.01844144,96040.0,96032.0,0.10264569]
[1740401485816,0.156189,96037.0,96032.0,0.10264569]
[1740401486431,0.208248,96039.0,96032.0,0.10464569]
[1740401486761,0.15619,96037.0,96032.0,0.10264569]
[1740401486969,0.15619,96037.0,96032.0,0.10564569]
[1740401487174,0.15619,96037.0,96032.0,0.10864569]
[1740401487720,0.208248,96039.0,96032.0,0.10864569]
[1740401488000,0.156188,96038.0,96032.0,0.10564569]
[1740401488413,0.208248,96039.0,96032.0,0.10264569]
[1740401488623,0.208248,96039.0,96032.0,0.10664569]
[1740401488825,0.156188,96038.0,96032.0,0.10664569]
[1740401489242,0.2090973,96039.0,96032.0,0.10964569]
[1740401489243,0.156189,96037.0,96032.0,0.10964569]
[1740401489449,0.3652843,96039.0,96032.0,0.10964569]
[1740401489654,0.156188,96038.0,96032.0,0.10964569]
[1740401489863,0.0032593,96037.0,96032.0,0.10964569]
[1740401490067,0.0032593,96037.0,96032.0,0.10264569]
[1740401490298,0.0032593,96037.0,96032.0,0.10964569]
[1740401490752,0.0032593,96037.0,96012.0,0.02]
[1740401490753,0.02,95988.0,95981.0,0.0016986]
[1740401490994,0.196274,95985.0,95981.0,0.0016986]
[1740401491203,0.346274,95985.0,95981.0,0.0016986]
[1740401491415,0.346279,95982.0,95981.0,0.0016986]
[1740401491630,0.36561985,95982.0,95981.0,0.0016986]
[1740401491859,0.60900559,95982.0,95981.0,0.0016986]
[1740401492067,0.346295,95972.0,95951.0,0.0021002]
[1740401492286,0.36083585,95972.0,95951.0,0.0021002]
[1740401492946,0.58151031,95972.0,95951.0,0.0021002]
[1740401493388,0.58476961,95972.0,95951.0,0.0021002]
[1740401493607,0.46674084,95972.0,95951.0,0.0021002]
[1740401494803,0.46874084,95972.0,95951.0,0.0021002]
[1740401495217,0.56938653,95972.0,95951.0,0.0021002]
[1740401495594,0.57238653,95972.0,95951.0,0.0021002]
[1740401495864,0.57338653,95972.0,95951.0,0.0021002]
[1740401496042,0.57238653,95972.0,95951.0,0.0021002]
[1740401496393,0.37009515,95972.0,95951.0,0.0021002]
[1740401496985,0.3555543,95972.0,95951.0,0.0021002]
[1740401497402,0.352295,95972.0,95951.0,0.0021002]
[1740401498433,0.332295,95972.0,95951.0,0.0021002]
[1740401499060,0.312295,95972.0,95951.0,0.0021002]
[1740401499271,0.332295,95972.0,95951.0,0.0021002]
[1740401499692,0.352295,95972.0,95951.0,0.0021002]
[1740401509818,0.36683585,95972.0,95951.0,0.0021002]
[1740401510045,0.66402336,95972.0,95951.0,0.0021002]
[1740401510255,0.60263436,95972.0,95951.0,0.0021002]
[1740401510636,0.59963436,95972.0,95951.0,0.0021002]
[1740401510881,0.59663436,95972.0,95951.0,0.0021002]
[1740401511075,0.60663436,95972.0,95951.0,0.0021002]
[1740401511294,1.58622636,95972.0,95971.0,2e-07]
[1740401511483,1.58622636,95972.0,95951.0,0.0021002]
[1740401511484,0.346328,95952.0,95951.0,0.0021002]
[1740401511720,0.346328,95952.0,95951.0,0.00221698]
[1740401513148,0.346328,95952.0,95951.0,0.00321698]
[1740401513544,0.346328,95952.0,95951.0,0.00521698]
[1740401513720,0.326328,95952.0,95951.0,0.00521698]
[1740401513934,0.17,95952.0,95951.0,0.00521698]
[1740401514337,0.346328,95952.0,95951.0,0.00521698]
[1740401514953,0.196328,95952.0,95951.0,0.00521698]
[1740401515163,0.176328,95952.0,95951.0,0.00521698]
[1740401515364,0.2784897,95952.0,95951.0,0.00521698]
[1740401515725,0.196328,95952.0,95951.0,0.00521698]
[1740401516132,0.196328,95952.0,95951.0,0.00321698]
[1740401516530,0.197328,95952.0,95951.0,0.00221698]
[1740401516735,0.198328,95952.0,95951.0,0.00221698]
[1740401516938,0.197328,95952.0,95951.0,0.00221698]
[1740401517333,0.20681118,95952.0,95951.0,0.00221698]
[1740401518628,0.22135203,95952.0,95951.0,0.00221698]
[1740401518836,0.22135203,95952.0,95940.0,0.0016996]
[1740401518837,0.02,95943.0,95940.0,0.0016996]
[1740401519044,0.156346,95941.0,95940.0,0.00213088]
[1740401519218,0.176346,95941.0,95940.0,0.00213088]
[1740401520045,0.176346,95941.0,95940.0,0.00413088]
[1740401520821,0.20482918,95941.0,95940.0,0.0021814]
[1740401521442,0.156365,95929.0,95926.0,0.0016996]
[1740401521644,0.156365,95929.0,95928.0,0.04832941]
[1740401522815,0.157365,95929.0,95928.0,0.05432941]
[1740401523016,0.001,95929.0,95928.0,0.05432941]
[1740401523226,0.157365,95929.0,95928.0,0.05432941]
[1740401523418,0.158365,95929.0,95928.0,0.06032941]
[1740401523795,0.16684818,95929.0,95928.0,0.06032941]
[1740401525309,0.16684818,95929.0,95928.0,0.06117891]
[1740401528306,0.26159166,95929.0,95928.0,0.01297891]
[1740401528509,0.20684818,95929.0,95928.0,0.01297891]
[1740401529281,0.18484818,95929.0,95928.0,0.00097891]
[1740401529481,0.00948318,95929.0,95928.0,0.00797891]
[1740401529878,0.02196695,95929.0,95928.0,0.3893916]
[1740401530174,0.02096695,95929.0,95928.0,0.2360246]
[1740401530397,0.02096695,95929.0,95928.0,0.2380246]
[1740401530976,0.17733195,95929.0,95928.0,0.2380246]
[1740401531190,0.02096695,95929.0,95928.0,0.2350246]
[1740401531594,0.18484818,95929.0,95928.0,0.00297891]
[1740401532412,0.18484818,95929.0,95928.0,0.00097891]
[1740401532609,0.18584818,95929.0,95928.0,0.00397891]
[1740401533000,0.18684818,95929.0,95928.0,0.00997891]
[1740401533224,0.18484818,95929.0,95928.0,0.00097891]
[1740401533652,0.16484818,95929.0,95928.0,0.00397891]
[1740401533879,0.18484818,95929.0,95928.0,0.00397891]
[1740401534087,0.00848318,95929.0,95928.0,0.00016639]
[1740401534695,0.00848318,95929.0,95928.0,0.15653339]
[1740401534898,0.00848318,95929.0,95928.0,0.23568387]
[1740401535107,0.00848318,95929.0,95928.0,0.31578387]
[1740401535496,0.02096805,95929.0,95928.0,0.31578387]
[1740401536058,0.02096805,95929.0,95928.0,0.18274569]
[1740401537064,0.00848318,95929.0,95928.0,0.18274569]
[1740401537307,0.00848318,95929.0,95928.0,0.33911269]
[1740401537500,0.00326276,95929.0,95928.0,0.18274569]
[1740401537883,0.15962776,95929.0,95928.0,0.18274569]
[1740401538506,0.15962776,95929.0,95928.0,0.18359559]
[1740401547237,0.02,95932.0,95928.0,0.18359559]
[1740401548009,0.156364,95930.0,95928.0,0.18359559]
[1740401548213,0.156362,95931.0,95928.0,0.18359559]
[1740401548415,0.156364,95930.0,95928.0,0.18359559]
[1740401549099,0.228483,95932.0,95928.0,0.18359559]
[1740401549326,0.156365,95930.0,95928.0,0.18559559]
[1740401549506,0.156365,95930.0,95928.0,0.18359559]
[1740401549712,0.228483,95932.0,95928.0,0.18659559]
[1740401549713,0.02,95932.0,95928.0,0.18659559]
[1740401550087,0.156363,95931.0,95928.0,0.18359559]
[1740401550296,0.176361,95932.0,95928.0,0.18559559]
[1740401550502,0.02,95932.0,95928.0,0.18559559]
[1740401550727,0.176361,95932.0,95928.0,0.18559559]
[1740401550930,0.0016996,95930.0,95928.0,0.18559559]
[1740401551149,0.0016996,95930.0,95929.0,0.30491069]
[1740401552351,0.0016996,95930.0,95929.0,0.30791069]
[1740401553354,0.0016996,95930.0,95929.0,0.38771069]
[1740401555168,0.0016996,95930.0,95929.0,0.38471069]
[1740401555527,0.0016996,95930.0,95929.0,0.38771069]
[1740401555726,0.0016996,95930.0,95929.0,0.38471069]
[1740401556121,0.0016996,95930.0,95929.0,0.38971069]
[1740401556122,0.0026996,95930.0,95929.0,0.38971069]
[1740401557484,0.0036996,95930.0,95929.0,0.39271069]
[1740401560110,0.00696236,95930.0,95929.0,0.39271069]
[1740401562932,0.00696236,95930.0,95929.0,0.39356039]
[1740401569585,0.0036996,95930.0,95929.0,0.39356039]
[1740401575824,0.0036996,95930.0,95929.0,0.71496039]
[1740401598039,0.0036996,95930.0,95929.0,0.7475672]
[1740401598198,0.0036996,95930.0,95929.0,0.8975672]
[1740401600539,0.00167668,95930.0,95929.0,0.8975672]
[1740401600766,0.00167668,95930.0,95929.0,0.86496039]
[1740401611530,0.208414,95963.0,95930.0,0.15]
[1740401611788,0.156319,95958.0,95950.0,0.156331]
[1740401612004,0.31812713,95960.0,95936.0,0.10264569]
[1740401612005,0.1098,95957.0,95936.0,0.10264569]
[1740401612248,0.156332,95950.0,95936.0,0.10264569]
[1740401612443,0.208439,95952.0,95939.0,0.156348]
[1740401612646,0.156329,95951.0,95940.0,0.25899169]
[1740401613687,0.208428,95956.0,95940.0,0.10264569]
[1740401613893,0.10970613,95950.0,95940.0,0.10264569]
[1740401614108,0.156339,95945.0,95940.0,0.10264569]
[1740401615274,0.208448,95947.0,95940.0,0.10664569]
[1740401615474,0.156342,95944.0,95940.0,0.10964569]
[1740401616242,0.156342,95944.0,95940.0,0.10264569]
[1740401616724,0.156342,95944.0,95940.0,0.10864569]
[1740401616928,0.15634,95945.0,95940.0,0.10864569]
[1740401617078,0.10970613,95950.0,95940.0,0.10864569]
[1740401617290,0.15634,95945.0,95940.0,0.10864569]
[1740401617892,0.15634,95945.0,95940.0,0.10264569]
[1740401618052,0.156341,95944.0,95940.0,0.10564569]
[1740401618260,0.156341,95944.0,95940.0,0.10964569]
[1740401618463,0.208444,95949.0,95940.0,0.10964569]
[1740401618685,0.15634,95945.0,95940.0,0.10564569]
[1740401618894,0.15634,95945.0,95940.0,0.10264569]
[1740401619118,0.208449,95947.0,95940.0,0.10564569]
[1740401619341,0.208449,95947.0,95940.0,0.10964569]
[1740401619644,0.10970613,95950.0,95940.0,0.10664569]
[1740401619903,0.156339,95945.0,95940.0,0.10964569]
[1740401620756,0.156338,95946.0,95940.0,0.10964569]
[1740401621610,0.156338,95946.0,95940.0,0.10734469]
[1740401621784,0.156335,95948.0,95940.0,0.10734469]